[Event "Live Chess"]
[Site "Chess.com"]
[Date "2023.05.20"]
[Round "-"]
[White "raminguy"]
[Black "diana21strabt"]
[Result "0-1"]
[WhiteElo "1963"]
[BlackElo "1696"]
[TimeControl "300"]
[EndTime "13:39:06 PDT"]
[Termination "diana21strabt won by resignation"]

1. d4 {[%clk 0:04:59.3]} 1... Nf6 {[%clk 0:04:58.8]} 2. Nc3 {[%clk 0:04:58.8]}
2... g6 {[%clk 0:04:57.6]} 3. Bf4 {[%clk 0:04:58]} 3... d5 {[%clk 0:04:55.9]} 4.
e3 {[%clk 0:04:56.6]} 4... e6 {[%clk 0:04:54.7]} 5. h4 {[%clk 0:04:56]} 5... Bg7
{[%clk 0:04:53.1]} 6. Bd3 {[%clk 0:04:53.8]} 6... Nbd7 {[%clk 0:04:50.5]} 7. Nf3
{[%clk 0:04:52]} 7... c5 {[%clk 0:04:47.5]} 8. Nb5 {[%clk 0:04:49.7]} 8... Qa5+
{[%clk 0:04:44.1]} 9. c3 {[%clk 0:04:47.8]} 9... O-O {[%clk 0:04:41.3]} 10. h5
{[%clk 0:04:45]} 10... cxd4 {[%clk 0:04:36.4]} 11. exd4 {[%clk 0:04:42.5]} 11...
Nxh5 {[%clk 0:04:32.4]} 12. Rxh5 {[%clk 0:04:39.9]} 12... gxh5 {[%clk
0:04:31.4]} 13. Ng5 {[%clk 0:04:36.9]} 13... f5 {[%clk 0:04:20]} 14. Qxh5 {[%clk
0:04:35.2]} 14... Nf6 {[%clk 0:04:18.7]} 15. Qh2 {[%clk 0:04:27.4]} 15... a6
{[%clk 0:04:15.8]} 16. Bc7 {[%clk 0:04:22.5]} 16... b6 {[%clk 0:04:08.9]} 17.
Na3 {[%clk 0:03:31.4]} 17... h6 {[%clk 0:03:56.7]} 18. Nf3 {[%clk 0:03:18.5]}
18... Ne8 {[%clk 0:03:53.7]} 19. Bf4 {[%clk 0:03:10.1]} 19... Rf6 {[%clk
0:03:36.4]} 20. O-O-O {[%clk 0:03:00.1]} 20... b5 {[%clk 0:03:32.6]} 21. Bc7
{[%clk 0:02:55.1]} 21... Qxc7 {[%clk 0:03:27.5]} 0-1

[Event "Live Chess"]
[Site "Chess.com"]
[Date "2023.05.20"]
[Round "-"]
[White "mliszewski"]
[Black "LiamClery2020"]
[Result "0-1"]
[WhiteElo "1878"]
[BlackElo "2091"]
[TimeControl "300"]
[EndTime "13:39:10 PDT"]
[Termination "LiamClery2020 won by resignation"]

1. d4 {[%clk 0:04:58.8]} 1... Nf6 {[%clk 0:04:58.1]} 2. Bg5 {[%clk 0:04:57.9]}
2... Ne4 {[%clk 0:04:56.5]} 3. h4 {[%clk 0:04:56.8]} 3... h6 {[%clk 0:04:55.3]}
4. Bf4 {[%clk 0:04:55.7]} 4... d5 {[%clk 0:04:51.9]} 5. e3 {[%clk 0:04:54.8]}
5... c5 {[%clk 0:04:50.7]} 6. c3 {[%clk 0:04:53.1]} 6... Nc6 {[%clk 0:04:49.6]}
7. Nd2 {[%clk 0:04:52.4]} 7... Nxd2 {[%clk 0:04:44]} 8. Qxd2 {[%clk 0:04:51.3]}
8... Bf5 {[%clk 0:04:42]} 9. Nf3 {[%clk 0:04:49.3]} 9... e6 {[%clk 0:04:38.7]}
10. Bd3 {[%clk 0:04:46.7]} 10... Bxd3 {[%clk 0:04:36.6]} 11. Qxd3 {[%clk
0:04:45.5]} 11... Bd6 {[%clk 0:04:36]} 12. Ne5 {[%clk 0:04:43.7]} 12... Bxe5
{[%clk 0:04:31.8]} 13. dxe5 {[%clk 0:04:42.5]} 13... Qc7 {[%clk 0:04:31.4]} 14.
Qb5 {[%clk 0:04:33.1]} 14... b6 {[%clk 0:04:19.8]} 15. Bg3 {[%clk 0:04:31.2]}
15... O-O {[%clk 0:04:16]} 16. f4 {[%clk 0:04:30.3]} 16... Ne7 {[%clk
0:04:14.8]} 17. O-O {[%clk 0:04:27.3]} 17... Nf5 {[%clk 0:04:11.2]} 18. Bf2
{[%clk 0:04:25.5]} 18... a6 {[%clk 0:04:07.5]} 19. Qd3 {[%clk 0:04:24.2]} 19...
Rad8 {[%clk 0:04:03.6]} 20. e4 {[%clk 0:04:22.4]} 20... dxe4 {[%clk 0:04:00.8]}
21. Qxe4 {[%clk 0:04:21.7]} 21... Rd2 {[%clk 0:03:57.6]} 22. Rad1 {[%clk
0:04:18.9]} 22... Rfd8 {[%clk 0:03:55.8]} 23. Rxd2 {[%clk 0:04:16.7]} 23... Rxd2
{[%clk 0:03:55.7]} 24. g4 {[%clk 0:04:04.3]} 24... Ne7 {[%clk 0:03:48.4]} 25.
Be3 {[%clk 0:04:01.4]} 25... Rxb2 {[%clk 0:03:42.9]} 26. f5 {[%clk 0:03:59.8]}
26... Qc6 {[%clk 0:03:40.5]} 27. Qxc6 {[%clk 0:03:54.4]} 27... Nxc6 {[%clk
0:03:40.4]} 28. fxe6 {[%clk 0:03:53.8]} 28... fxe6 {[%clk 0:03:38.1]} 29. g5
{[%clk 0:03:47]} 29... hxg5 {[%clk 0:03:32.7]} 30. Bxg5 {[%clk 0:03:40.7]} 30...
Nxe5 {[%clk 0:03:31]} 31. Bf4 {[%clk 0:03:26.1]} 31... Ng6 {[%clk 0:03:25.3]}
32. h5 {[%clk 0:03:23]} 32... Nxf4 {[%clk 0:03:24.1]} 33. Rxf4 {[%clk 0:03:22]}
33... Rxa2 {[%clk 0:03:23.5]} 34. Re4 {[%clk 0:03:19.1]} 34... Rc2 {[%clk
0:03:18.7]} 35. Rxe6 {[%clk 0:03:13.2]} 35... b5 {[%clk 0:03:17.1]} 36. Rxa6
{[%clk 0:03:12]} 36... Rxc3 {[%clk 0:03:13.1]} 37. Kf1 {[%clk 0:03:08.6]} 37...
b4 {[%clk 0:03:12.1]} 38. Ke1 {[%clk 0:03:06.9]} 38... b3 {[%clk 0:03:10.6]} 39.
Rb6 {[%clk 0:03:05.7]} 39... c4 {[%clk 0:03:08.8]} 40. Kd2 {[%clk 0:03:05.2]}
40... Rc2+ {[%clk 0:03:08.2]} 41. Ke3 {[%clk 0:03:04.6]} 41... b2 {[%clk
0:03:05.4]} 42. Kd4 {[%clk 0:03:03.3]} 42... c3 {[%clk 0:03:03.1]} 43. Kd3
{[%clk 0:03:02.7]} 43... Rc1 {[%clk 0:03:01.9]} 0-1

[Event "Live Chess"]
[Site "Chess.com"]
[Date "2023.05.20"]
[Round "-"]
[White "JoeyCage"]
[Black "ProfPoisson"]
[Result "1-0"]
[WhiteElo "2309"]
[BlackElo "1120"]
[TimeControl "300"]
[EndTime "13:39:11 PDT"]
[Termination "JoeyCage won by resignation"]

1. e4 {[%clk 0:04:56.2]} 1... e5 {[%clk 0:04:56.7]} 2. Nf3 {[%clk 0:04:55.2]}
2... Nf6 {[%clk 0:04:53.7]} 3. Nxe5 {[%clk 0:04:53.6]} 3... Nxe4 {[%clk
0:04:50.9]} 4. Qe2 {[%clk 0:04:50.9]} 4... Qe7 {[%clk 0:04:48.3]} 5. Qxe4 {[%clk
0:04:49.1]} 5... d6 {[%clk 0:04:46.2]} 6. f4 {[%clk 0:04:47.9]} 6... dxe5 {[%clk
0:04:41.8]} 7. Qxe5 {[%clk 0:04:46.5]} 7... Qxe5+ {[%clk 0:04:35.9]} 8. fxe5
{[%clk 0:04:44.9]} 8... Nc6 {[%clk 0:04:31.5]} 9. Bb5 {[%clk 0:04:40.7]} 9...
Bd7 {[%clk 0:04:22.7]} 10. Bxc6 {[%clk 0:04:39.2]} 10... Bxc6 {[%clk 0:04:20.8]}
11. O-O {[%clk 0:04:39.1]} 11... O-O-O {[%clk 0:04:18.3]} 12. c3 {[%clk
0:04:37.2]} 12... Be7 {[%clk 0:03:56.2]} 13. d4 {[%clk 0:04:35.1]} 13... f6
{[%clk 0:03:53.8]} 14. exf6 {[%clk 0:04:33.3]} 14... gxf6 {[%clk 0:03:50]} 15.
Nd2 {[%clk 0:04:32.3]} 15... Rhg8 {[%clk 0:03:48]} 16. Nf3 {[%clk 0:04:30.7]}
16... Rg7 {[%clk 0:03:40]} 17. Kf2 {[%clk 0:04:25.9]} 17... Rdg8 {[%clk
0:03:37]} 18. g3 {[%clk 0:04:24.6]} 18... h5 {[%clk 0:03:24.5]} 19. Bf4 {[%clk
0:04:21.3]} 19... Bd6 {[%clk 0:03:09.5]} 20. Bxd6 {[%clk 0:04:19.4]} 20... cxd6
{[%clk 0:03:06.3]} 21. Rae1 {[%clk 0:04:17.8]} 21... Bxf3 {[%clk 0:03:01.1]} 22.
Kxf3 {[%clk 0:04:16.4]} 22... Kd7 {[%clk 0:02:51.8]} 23. Rg1 {[%clk 0:04:14.6]}
23... d5 {[%clk 0:02:35.7]} 24. Rg2 {[%clk 0:04:12.6]} 24... Kd6 {[%clk
0:02:33.4]} 25. Ree2 {[%clk 0:04:11.4]} 25... b5 {[%clk 0:02:14.6]} 26. h3
{[%clk 0:04:09.4]} 26... a5 {[%clk 0:02:12.8]} 27. g4 {[%clk 0:04:07.3]} 27...
hxg4+ {[%clk 0:02:08.6]} 28. Rxg4 {[%clk 0:04:05.5]} 28... Rxg4 {[%clk
0:02:05.6]} 29. hxg4 {[%clk 0:04:04.5]} 29... b4 {[%clk 0:01:51.9]} 30. cxb4
{[%clk 0:04:02.3]} 30... axb4 {[%clk 0:01:49.4]} 31. a3 {[%clk 0:04:01.3]} 31...
bxa3 {[%clk 0:01:46.2]} 32. bxa3 {[%clk 0:04:00.1]} 32... Ra8 {[%clk 0:01:44.7]}
33. Ra2 {[%clk 0:03:58.9]} 33... Ra4 {[%clk 0:01:42.5]} 34. Ke3 {[%clk 0:03:58]}
34... Rc4 {[%clk 0:01:35.5]} 35. a4 {[%clk 0:03:56.1]} 35... Kc6 {[%clk
0:01:30.1]} 36. a5 {[%clk 0:03:54.2]} 36... Kb7 {[%clk 0:01:26.8]} 37. a6+
{[%clk 0:03:49.5]} 37... Ka7 {[%clk 0:01:25.3]} 38. Ra3 {[%clk 0:03:49.4]} 38...
Rc6 {[%clk 0:01:20.3]} 39. Kf4 {[%clk 0:03:47.3]} 39... Rc4 {[%clk 0:01:14]} 40.
Ke3 {[%clk 0:03:39.6]} 40... Rc6 {[%clk 0:01:08.3]} 41. Ra5 {[%clk 0:03:38.4]}
41... Re6+ {[%clk 0:00:59.4]} 42. Kf3 {[%clk 0:03:35.1]} 42... Kb6 {[%clk
0:00:53.4]} 43. a7 {[%clk 0:03:31.7]} 43... Kxa5 {[%clk 0:00:29.2]} 44. a8=Q+
{[%clk 0:03:25.7]} 44... Kb4 {[%clk 0:00:27.8]} 45. Qxd5 {[%clk 0:03:24.3]} 1-0

[Event "Live Chess"]
[Site "Chess.com"]
[Date "2023.05.20"]
[Round "-"]
[White "Horseymobile"]
[Black "MrBlond89"]
[Result "1-0"]
[WhiteElo "1252"]
[BlackElo "1410"]
[TimeControl "300"]
[EndTime "13:39:15 PDT"]
[Termination "Horseymobile won by resignation"]

1. d4 {[%clk 0:04:59.8]} 1... d5 {[%clk 0:04:50.3]} 2. c4 {[%clk 0:04:56.7]}
2... e5 {[%clk 0:04:47.9]} 3. cxd5 {[%clk 0:04:47.6]} 3... Qxd5 {[%clk
0:04:44.9]} 4. Nc3 {[%clk 0:04:20.2]} 4... exd4 {[%clk 0:04:39.7]} 5. Nxd5
{[%clk 0:04:18.5]} 5... Be6 {[%clk 0:04:25.9]} 6. Nxc7+ {[%clk 0:04:16.1]} 6...
Kd8 {[%clk 0:04:18.1]} 7. Nxa8 {[%clk 0:04:10.5]} 7... Bb4+ {[%clk 0:04:18]} 8.
Bd2 {[%clk 0:04:09.3]} 8... Bxd2+ {[%clk 0:04:13.3]} 9. Qxd2 {[%clk 0:04:09.2]}
9... Nf6 {[%clk 0:04:11.3]} 10. Qxd4+ {[%clk 0:04:04.9]} 10... Ke7 {[%clk
0:04:09.7]} 11. Qb4+ {[%clk 0:03:58.7]} 1-0

[Event "Live Chess"]
[Site "Chess.com"]
[Date "2023.05.20"]
[Round "-"]
[White "Olisingapore"]
[Black "stevefairhurst"]
[Result "1-0"]
[WhiteElo "1878"]
[BlackElo "586"]
[TimeControl "300"]
[EndTime "13:39:19 PDT"]
[Termination "Olisingapore won by checkmate"]

1. d4 {[%clk 0:04:57.9]} 1... d5 {[%clk 0:04:59.2]} 2. c4 {[%clk 0:04:57.4]}
2... dxc4 {[%clk 0:04:57.6]} 3. Nf3 {[%clk 0:04:57]} 3... Nc6 {[%clk 0:04:55.7]}
4. e3 {[%clk 0:04:56.5]} 4... Nf6 {[%clk 0:04:52.6]} 5. Bxc4 {[%clk 0:04:55.9]}
5... Ne4 {[%clk 0:04:48.2]} 6. O-O {[%clk 0:04:51.6]} 6... Qd6 {[%clk
0:04:40.1]} 7. Ne5 {[%clk 0:04:45.7]} 7... Qh6 {[%clk 0:04:24.6]} 8. Bxf7+
{[%clk 0:04:26.6]} 8... Kd8 {[%clk 0:04:16.3]} 9. Nc3 {[%clk 0:04:25.9]} 9...
Nxe5 {[%clk 0:04:14.6]} 10. dxe5+ {[%clk 0:04:20.9]} 10... Bd7 {[%clk
0:04:06.6]} 11. Nxe4 {[%clk 0:04:19.4]} 11... e6 {[%clk 0:03:57.7]} 12. Qd3
{[%clk 0:04:09.7]} 12... Kc8 {[%clk 0:03:52.2]} 13. Rd1 {[%clk 0:03:48.7]} 13...
Be7 {[%clk 0:03:47]} 14. Qxd7+ {[%clk 0:03:45]} 14... Kb8 {[%clk 0:03:44.3]} 15.
Qxe7 {[%clk 0:03:37.6]} 15... Rc8 {[%clk 0:03:42.2]} 16. Bxe6 {[%clk 0:03:33.6]}
16... b6 {[%clk 0:03:37.2]} 17. Bd5 {[%clk 0:03:25]} 17... c6 {[%clk 0:03:33.3]}
18. Nd6 {[%clk 0:03:20.4]} 18... cxd5 {[%clk 0:03:30.8]} 19. Qb7# {[%clk
0:03:19]} 1-0

[Event "Live Chess"]
[Site "Chess.com"]
[Date "2023.05.20"]
[Round "-"]
[White "1600x"]
[Black "Jeffaroow"]
[Result "1-0"]
[WhiteElo "1793"]
[BlackElo "468"]
[TimeControl "300"]
[EndTime "13:39:20 PDT"]
[Termination "1600x won by resignation"]

1. d3 {[%clk 0:04:56.6]} 1... d5 {[%clk 0:04:57.9]} 2. Nc3 {[%clk 0:04:56.5]}
2... Nf6 {[%clk 0:04:56.4]} 3. d4 {[%clk 0:04:56.4]} 3... c5 {[%clk 0:04:51.6]}
4. e3 {[%clk 0:04:54.7]} 4... Nc6 {[%clk 0:04:49.1]} 5. Nf3 {[%clk 0:04:52.1]}
5... Ne4 {[%clk 0:04:45.1]} 6. Bb5 {[%clk 0:04:49.1]} 6... Nxc3 {[%clk
0:04:43.2]} 7. bxc3 {[%clk 0:04:47.3]} 7... cxd4 {[%clk 0:04:35.7]} 8. exd4
{[%clk 0:04:46.1]} 8... Bd7 {[%clk 0:04:33.7]} 9. O-O {[%clk 0:04:44.1]} 9... a6
{[%clk 0:04:25.3]} 10. Bd3 {[%clk 0:04:41.9]} 10... e6 {[%clk 0:04:16.2]} 11. c4
{[%clk 0:04:40.1]} 11... dxc4 {[%clk 0:04:13.2]} 12. Bxc4 {[%clk 0:04:26.6]}
12... Bd6 {[%clk 0:04:07.2]} 13. d5 {[%clk 0:04:25.1]} 13... exd5 {[%clk
0:04:06]} 14. Qxd5 {[%clk 0:04:22.1]} 14... Be6 {[%clk 0:03:52.6]} 15. Qe4
{[%clk 0:04:19.6]} 15... O-O {[%clk 0:03:42.1]} 16. Ng5 {[%clk 0:04:17.4]} 16...
Qxg5 {[%clk 0:03:25.3]} 17. Bxg5 {[%clk 0:04:14.5]} 1-0

[Event "Live Chess"]
[Site "Chess.com"]
[Date "2023.05.20"]
[Round "-"]
[White "Trendle"]
[Black "Bob2pen"]
[Result "1-0"]
[WhiteElo "2673"]
[BlackElo "1802"]
[TimeControl "300"]
[EndTime "13:39:25 PDT"]
[Termination "Trendle won by resignation"]

1. d4 {[%clk 0:04:58.2]} 1... Nf6 {[%clk 0:04:57.4]} 2. Bf4 {[%clk 0:04:56.9]}
2... d6 {[%clk 0:04:56.2]} 3. Nc3 {[%clk 0:04:51.3]} 3... g6 {[%clk 0:04:54]} 4.
e4 {[%clk 0:04:49.7]} 4... Bg7 {[%clk 0:04:52.9]} 5. Qd2 {[%clk 0:04:47]} 5...
O-O {[%clk 0:04:51.4]} 6. O-O-O {[%clk 0:04:42.4]} 6... c6 {[%clk 0:04:42]} 7.
h4 {[%clk 0:04:39.1]} 7... b5 {[%clk 0:04:28.6]} 8. Bd3 {[%clk 0:04:37.6]} 8...
b4 {[%clk 0:04:24.6]} 9. Nce2 {[%clk 0:04:32.1]} 9... Qa5 {[%clk 0:04:21.5]} 10.
Kb1 {[%clk 0:04:31.1]} 10... Be6 {[%clk 0:04:17.7]} 11. Nc1 {[%clk 0:04:27.8]}
11... c5 {[%clk 0:04:13.3]} 12. d5 {[%clk 0:04:21.7]} 12... Bd7 {[%clk 0:04:11]}
13. Bh6 {[%clk 0:04:17.5]} 13... Rc8 {[%clk 0:04:08.6]} 14. b3 {[%clk
0:03:58.9]} 14... Bb5 {[%clk 0:04:06.1]} 15. Bxg7 {[%clk 0:03:51.7]} 15... Kxg7
{[%clk 0:04:04.2]} 16. Qe2 {[%clk 0:03:47.1]} 16... c4 {[%clk 0:03:58.1]} 17.
bxc4 {[%clk 0:03:40.3]} 17... Ba4 {[%clk 0:03:54.5]} 18. Nb3 {[%clk 0:03:38.6]}
18... Bxb3 {[%clk 0:03:52.7]} 19. cxb3 {[%clk 0:03:36.5]} 19... Nbd7 {[%clk
0:03:48.4]} 20. f4 {[%clk 0:03:31.7]} 20... Nc5 {[%clk 0:03:45.8]} 21. Bc2
{[%clk 0:03:26.6]} 21... Qc7 {[%clk 0:03:39.5]} 22. e5 {[%clk 0:03:23.6]} 22...
dxe5 {[%clk 0:03:35.9]} 23. fxe5 {[%clk 0:03:23.5]} 23... Nh5 {[%clk 0:03:34.3]}
24. Qe3 {[%clk 0:03:11.4]} 24... Kg8 {[%clk 0:03:19.6]} 25. g4 {[%clk
0:03:06.5]} 25... Ng7 {[%clk 0:03:18.1]} 26. h5 {[%clk 0:03:03.3]} 26... f6
{[%clk 0:02:53.5]} 27. Nf3 {[%clk 0:02:52]} 27... Rf8 {[%clk 0:02:36.5]} 28.
hxg6 {[%clk 0:02:49.5]} 28... fxe5 {[%clk 0:02:34.6]} 29. gxh7+ {[%clk
0:02:46.3]} 29... Kh8 {[%clk 0:02:32.9]} 30. Nxe5 {[%clk 0:02:44.4]} 30... Qd6
{[%clk 0:02:29]} 31. Ng6+ {[%clk 0:02:41.4]} 1-0

[Event "Live Chess"]
[Site "Chess.com"]
[Date "2023.05.20"]
[Round "-"]
[White "Conradical12"]
[Black "birdseed45"]
[Result "0-1"]
[WhiteElo "1577"]
[BlackElo "1876"]
[TimeControl "300"]
[EndTime "13:39:31 PDT"]
[Termination "birdseed45 won by resignation"]

1. e4 {[%clk 0:04:56.6]} 1... c5 {[%clk 0:04:59.6]} 2. d4 {[%clk 0:04:54.1]}
2... cxd4 {[%clk 0:04:57.8]} 3. c3 {[%clk 0:04:53.7]} 3... dxc3 {[%clk
0:04:56.4]} 4. Nxc3 {[%clk 0:04:53.6]} 4... Nc6 {[%clk 0:04:55]} 5. f4 {[%clk
0:04:52.3]} 5... e6 {[%clk 0:04:53.9]} 6. Nf3 {[%clk 0:04:51.7]} 6... Bb4 {[%clk
0:04:51.3]} 7. Bc4 {[%clk 0:04:49.7]} 7... Bxc3+ {[%clk 0:04:49.7]} 8. bxc3
{[%clk 0:04:48.3]} 8... Nge7 {[%clk 0:04:48.3]} 9. O-O {[%clk 0:04:47.7]} 9...
O-O {[%clk 0:04:46.3]} 10. Ng5 {[%clk 0:04:46.5]} 10... h6 {[%clk 0:04:43.8]}
11. Nf3 {[%clk 0:04:35.9]} 11... b6 {[%clk 0:04:41]} 12. Ba3 {[%clk 0:04:34.3]}
12... Re8 {[%clk 0:04:37.5]} 13. f5 {[%clk 0:04:32.3]} 13... exf5 {[%clk
0:04:33.7]} 14. exf5 {[%clk 0:04:31.3]} 14... Nxf5 {[%clk 0:04:32.1]} 15. Ne5
{[%clk 0:04:22.6]} 15... Rxe5 {[%clk 0:04:23.5]} 16. g4 {[%clk 0:04:13.1]} 16...
Qg5 {[%clk 0:04:17.2]} 17. Qf3 {[%clk 0:04:06.6]} 17... Bb7 {[%clk 0:03:59.2]}
18. Rad1 {[%clk 0:03:43.1]} 18... Na5 {[%clk 0:03:51]} 19. Bxf7+ {[%clk
0:03:39.6]} 19... Kxf7 {[%clk 0:03:41.4]} 20. Rxd7+ {[%clk 0:03:32.4]} 20... Kg8
{[%clk 0:03:37.4]} 21. Rxb7 {[%clk 0:03:16.9]} 21... Nxb7 {[%clk 0:03:34.4]} 22.
Qxb7 {[%clk 0:03:16.4]} 22... Qxg4+ {[%clk 0:03:32.9]} 23. Kh1 {[%clk
0:03:15.9]} 23... Rae8 {[%clk 0:03:27.9]} 24. Rg1 {[%clk 0:03:03.7]} 24... Qe4+
{[%clk 0:03:24.5]} 25. Qxe4 {[%clk 0:03:00.8]} 25... Rxe4 {[%clk 0:03:24.4]} 26.
c4 {[%clk 0:02:59.4]} 26... Re2 {[%clk 0:03:17.2]} 0-1

[Event "Live Chess"]
[Site "Chess.com"]
[Date "2023.05.20"]
[Round "-"]
[White "DmitryVasliev"]
[Black "terrub10"]
[Result "1-0"]
[WhiteElo "1668"]
[BlackElo "725"]
[TimeControl "300"]
[EndTime "13:39:53 PDT"]
[Termination "DmitryVasliev won by checkmate"]

1. e4 {[%clk 0:04:58.7]} 1... e5 {[%clk 0:04:58.5]} 2. f4 {[%clk 0:04:58.1]}
2... exf4 {[%clk 0:04:57.1]} 3. Nf3 {[%clk 0:04:56.9]} 3... Nf6 {[%clk
0:04:54.4]} 4. e5 {[%clk 0:04:54.8]} 4... Ne4 {[%clk 0:04:50.8]} 5. d3 {[%clk
0:04:49.3]} 5... Nc3 {[%clk 0:04:47.2]} 6. Nxc3 {[%clk 0:04:47]} 6... d5 {[%clk
0:04:42.8]} 7. Be2 {[%clk 0:04:42.1]} 7... d4 {[%clk 0:04:40.4]} 8. Ne4 {[%clk
0:04:40.5]} 8... Bb4+ {[%clk 0:04:31.7]} 9. c3 {[%clk 0:04:38.7]} 9... dxc3
{[%clk 0:04:25.1]} 10. bxc3 {[%clk 0:04:37.9]} 10... Bxc3+ {[%clk 0:04:22.7]}
11. Nxc3 {[%clk 0:04:33.8]} 11... Bg4 {[%clk 0:04:15.6]} 12. d4 {[%clk
0:04:24.3]} 12... Bxf3 {[%clk 0:04:12.6]} 13. Bxf3 {[%clk 0:04:23.1]} 13... O-O
{[%clk 0:04:09.3]} 14. Bxb7 {[%clk 0:04:17.7]} 14... Qh4+ {[%clk 0:03:53.2]} 15.
Kf1 {[%clk 0:04:14.1]} 15... f3 {[%clk 0:03:41]} 16. Qxf3 {[%clk 0:04:10.5]}
16... Nc6 {[%clk 0:03:32.1]} 17. Bxc6 {[%clk 0:03:54.5]} 17... Qxd4 {[%clk
0:03:28.1]} 18. Bxa8 {[%clk 0:03:42.4]} 18... Rxa8 {[%clk 0:03:26.3]} 19. Qxa8+
{[%clk 0:03:40.4]} 19... Qd8 {[%clk 0:03:19.8]} 20. Qxd8# {[%clk 0:03:38.1]} 1-0

[Event "Live Chess"]
[Site "Chess.com"]
[Date "2023.05.20"]
[Round "-"]
[White "wot-not"]
[Black "omisoc"]
[Result "1-0"]
[WhiteElo "1517"]
[BlackElo "2142"]
[TimeControl "300"]
[EndTime "13:40:00 PDT"]
[Termination "wot-not won on time"]

1. d4 {[%clk 0:04:57.3]} 1... g6 {[%clk 0:04:56.5]} 2. e4 {[%clk 0:04:46.1]}
2... d6 {[%clk 0:04:52.4]} 3. Bc4 {[%clk 0:04:43.6]} 3... e6 {[%clk 0:04:49.9]}
4. Ne2 {[%clk 0:04:41.9]} 4... Bg7 {[%clk 0:04:48.1]} 5. O-O {[%clk 0:04:39.9]}
5... b6 {[%clk 0:04:47]} 6. c3 {[%clk 0:04:38.9]} 6... Ne7 {[%clk 0:04:45.7]} 7.
Bg5 {[%clk 0:04:36]} 7... h6 {[%clk 0:04:43.8]} 8. Bh4 {[%clk 0:04:35.1]} 8...
Bb7 {[%clk 0:04:40.6]} 9. Nd2 {[%clk 0:04:30.2]} 9... Nd7 {[%clk 0:04:38.9]} 10.
d5 {[%clk 0:04:23.7]} 10... exd5 {[%clk 0:04:29.3]} 11. Bxd5 {[%clk 0:04:22.4]}
11... Bxd5 {[%clk 0:04:19.2]} 12. exd5 {[%clk 0:04:21.5]} 12... g5 {[%clk
0:04:17]} 13. Bg3 {[%clk 0:04:17]} 13... Nxd5 {[%clk 0:04:15.3]} 14. Nb3 {[%clk
0:04:02]} 14... N7f6 {[%clk 0:04:10.6]} 15. Ned4 {[%clk 0:03:53.9]} 15... Qd7
{[%clk 0:04:06.6]} 16. Re1+ {[%clk 0:03:48.2]} 16... Kf8 {[%clk 0:04:03.8]} 17.
Qc2 {[%clk 0:03:29]} 17... Ne7 {[%clk 0:03:22]} 18. Re2 {[%clk 0:02:51.1]} 18...
Nfd5 {[%clk 0:02:30.6]} 19. Rae1 {[%clk 0:02:36.5]} 19... Bf6 {[%clk 0:02:18.3]}
20. Qd3 {[%clk 0:02:05.5]} 20... Kg7 {[%clk 0:02:03.1]} 21. Qf3 {[%clk
0:01:58.2]} 21... Bxd4 {[%clk 0:01:56.4]} 22. Nxd4 {[%clk 0:01:51.1]} 22... Rae8
{[%clk 0:01:46.2]} 23. h4 {[%clk 0:01:28.3]} 23... c5 {[%clk 0:01:29]} 24. Nc2
{[%clk 0:01:10.8]} 24... g4 {[%clk 0:00:37.3]} 25. Qd3 {[%clk 0:01:01.8]} 25...
Nf6 {[%clk 0:00:35.1]} 26. Qxd6 {[%clk 0:00:54.8]} 26... Qxd6 {[%clk 0:00:32.8]}
27. Bxd6 {[%clk 0:00:53.9]} 27... Nf5 {[%clk 0:00:31.9]} 28. Rxe8 {[%clk
0:00:52.3]} 28... Rxe8 {[%clk 0:00:29.9]} 29. Rxe8 {[%clk 0:00:51.3]} 29... Nxe8
{[%clk 0:00:29.8]} 30. Bb8 {[%clk 0:00:46.2]} 30... a6 {[%clk 0:00:27.5]} 31.
Ba7 {[%clk 0:00:44.9]} 31... b5 {[%clk 0:00:23.6]} 32. Bxc5 {[%clk 0:00:43.7]}
32... Nxh4 {[%clk 0:00:22.3]} 33. Bd4+ {[%clk 0:00:42.1]} 33... Kg6 {[%clk
0:00:20]} 34. Nb4 {[%clk 0:00:41.3]} 34... a5 {[%clk 0:00:18]} 35. Nc6 {[%clk
0:00:40.1]} 35... a4 {[%clk 0:00:16.8]} 36. Ne5+ {[%clk 0:00:36.9]} 36... Kf5
{[%clk 0:00:14.3]} 37. Nxf7 {[%clk 0:00:35.8]} 37... h5 {[%clk 0:00:13.4]} 38.
Nh6+ {[%clk 0:00:32.3]} 38... Kg6 {[%clk 0:00:11.7]} 39. Ng8 {[%clk 0:00:30.5]}
39... Kf7 {[%clk 0:00:10.7]} 40. Nh6+ {[%clk 0:00:27.8]} 40... Kg6 {[%clk
0:00:10.1]} 41. Nxg4 {[%clk 0:00:26.3]} 41... hxg4 {[%clk 0:00:10]} 42. Bb6
{[%clk 0:00:24.9]} 42... Nf5 {[%clk 0:00:08.3]} 43. Ba5 {[%clk 0:00:24]} 43...
Ned6 {[%clk 0:00:07.3]} 44. Bb4 {[%clk 0:00:22.8]} 44... Nc4 {[%clk 0:00:06.4]}
45. Bc5 {[%clk 0:00:21.7]} 45... Nxb2 {[%clk 0:00:05]} 46. a3 {[%clk 0:00:20.1]}
46... Nd1 {[%clk 0:00:03.9]} 47. Bb4 {[%clk 0:00:19.6]} 47... Kf6 {[%clk
0:00:02.4]} 48. Kf1 {[%clk 0:00:19]} 48... Ke5 {[%clk 0:00:01.9]} 49. Ke2 {[%clk
0:00:18.4]} 49... Nb2 {[%clk 0:00:01.2]} 50. Kd2 {[%clk 0:00:17.7]} 50... Nc4+
{[%clk 0:00:01.1]} 51. Kc2 {[%clk 0:00:16.6]} 51... Ne7 {[%clk 0:00:00.7]} 52.
Kc1 {[%clk 0:00:15.8]} 52... Nd5 {[%clk 0:00:00.1]} 53. f3 {[%clk 0:00:15.4]}
1-0